fUST/lending_fUST_20241102
["ID","MTS","AMOUNT","RATE_DAILY","PERIOD"]
[341175588,1730535044639,-153.0,0.00033579,2]
[341175589,1730535044648,-153.0,0.00033579,2]
[341175590,1730535044658,-153.0,0.00033579,2]
[341175591,1730535044667,-153.0,0.00033579,2]
[341175592,1730535044677,-153.0,0.00033579,2]
[341175593,1730535044686,-153.0,0.00033579,2]
[341175594,1730535044695,-153.0,0.00033579,2]
[341175595,1730535044705,-153.0,0.00033579,2]
[341175596,1730535044715,-153.0,0.00033579,2]
[341175597,1730535044724,-153.0,0.00033579,2]
[341175598,1730535044734,-153.0,0.00033579,2]
[341175599,1730535044744,-153.0,0.00033579,2]
[341175600,1730535044754,-153.0,0.00033579,2]
[341175601,1730535044763,-153.0,0.00033579,2]
[341175602,1730535044774,-153.0,0.00033579,2]
[341175603,1730535044784,-153.0,0.00033579,2]
[341175604,1730535044794,-153.0,0.00033579,2]
[341175605,1730535044809,-153.0,0.00033579,2]
[341175606,1730535044822,-153.0,0.00033579,2]
[341175607,1730535044831,-153.0,0.00033579,2]
[341175608,1730535044840,-153.0,0.00033579,2]
[341175609,1730535044850,-153.0,0.00033579,2]
[341175610,1730535044860,-153.0,0.00033579,2]
[341175611,1730535044869,-153.0,0.00033579,2]
[341175612,1730535044878,-151.0,0.00033629,2]
[341175613,1730535044888,-500.0,0.00033629,2]
[341175614,1730535044898,-500.0,0.00033691,3]
[341175615,1730535044907,-151.0,0.00033699,120]
[341175616,1730535044917,-150.7821,0.000337,2]
[341175617,1730535044926,-183.774732,0.00033749,2]
[341175618,1730535044936,-179.471352,0.00033749,2]
[341175619,1730535044946,-770.909436,0.00033749,2]
[341175620,1730535044956,-513.320353,0.00033749,2]
[341175621,1730535044967,-410.145135,0.00033749,2]
[341175622,1730535044976,-256.660177,0.00033749,2]
[341175623,1730535044986,-153.86584,0.00033749,2]
[341175624,1730535044995,-187.90994902,0.00033804,2]
[341175625,1730535045006,-600.0,0.00033846,2]
[341175626,1730535045015,-560.0,0.00033894,2]
[341175627,1730535045025,-181.56575582,0.00033903,2]
[341175628,1730535045035,-500.0,0.00033903,2]
[341175629,1730535045049,-500.0,0.00033965,3]
[341175630,1730535045058,-5000.0,0.00033971,120]
[341175631,1730535045069,-6583.76,0.00033972,120]
[341175632,1730535045079,-23449.38861293,0.00034,14]
[341175633,1730535045181,-86.33072723,0.00034,14]
[341175634,1730535045192,-1071.60934037,0.00034,14]
[341175645,1730535046763,-36.18261797,0.00034,14]
[341175649,1730535299961,166.794147,0.00013973,2]
[341175651,1730535894194,165.184616,0.00013973,2]
[341175669,1730535955171,-944.94789212,0.0002105,2]
[341175680,1730536030103,-823.45903724,0.0002105,2]
[341175681,1730536030133,-1681.56921218,0.0002105,2]
[341175683,1730536061037,-151.0,0.0003,120]
[341175684,1730536061060,-151.0,0.00031288,120]
[341175685,1730536061088,-151.0,0.00032575,120]
[341175686,1730536061109,-28.76,0.00032877,120]
[341175694,1730536147122,-902.93649245,0.0002105,2]
[341175695,1730536147276,-159.651841,0.00027991,2]
[341175696,1730536147302,-592.313686,0.00028368,2]
[341175697,1730536154231,-251.167528,0.00029953,2]
[341175704,1730536201070,471.3816964,0.00029168,2]
[341175708,1730536227549,1702.2808038,0.00028968,2]
[341175748,1730536237977,-300.0,0.00029999,2]
[341175750,1730536237986,-300.0,0.00029999,2]
[341175751,1730536237995,-6032.06884731,0.0003,2]
[341175752,1730536238006,-250.0,0.00030282,2]
[341175753,1730536238015,-187.40775717,0.0003065,2]
[341175754,1730536238025,-5000.0,0.00030655,2]
[341175755,1730536238034,-500.0,0.00030655,3]
[341175756,1730536238043,-13633.29051198,0.00030656,2]
[341175757,1730536238055,-10038.43569474,0.00030656,2]
[341175758,1730536238067,-591.36359895,0.00030656,2]
[341175765,1730536239946,-636.91019433,0.00030656,2]
[341175766,1730536239962,-3000.0,0.0003077,2]
[341175767,1730536239971,-174.93098079,0.0003077,7]
[341175768,1730536239982,-1552.7863148,0.00030851,2]
[341175769,1730536239991,-742.387079,0.00030901,2]
[341175770,1730536240007,-1140.735544,0.0003092,2]
[341175771,1730536240025,-500.0,0.00030929,3]
[341175772,1730536240035,-250.0,0.00031169,2]
[341175773,1730536240044,-500.0,0.00031203,3]
[341175774,1730536240055,-250.0,0.00031254,2]
[341175775,1730536240065,-250.0,0.0003134,2]
[341175776,1730536240074,-250.0,0.00031425,2]
[341175777,1730536240084,-281.59417283,0.00031477,3]
[341175874,1730536245893,-218.40582717,0.00031477,3]
[341175875,1730536245903,-504.11532882,0.00031499,4]
[341175876,1730536245912,-250.0,0.00031511,2]
[341175877,1730536245922,-742.387079,0.00031586,2]
[341175878,1730536245932,-250.0,0.00031596,2]
[341175879,1730536245942,-5000.0,0.00031681,2]
[341175880,1730536245952,-250.0,0.00031682,2]
[341175881,1730536245960,-500.0,0.00031751,3]
[341175882,1730536245970,-357.24496405,0.00031766,2]
[341175883,1730536245980,-500.0,0.00031766,2]
[341175884,1730536245990,-617.85453372,0.00031766,2]
[341175885,1730536246000,-500.0,0.00031766,2]
[341175886,1730536246012,-382.20097232,0.00031766,2]
[341175887,1730536246023,-266.48323602,0.00031766,2]
[341175888,1730536246032,-500.0,0.00031766,2]
[341175889,1730536246042,-500.0,0.00031766,2]
[341175890,1730536246053,-500.0,0.00031766,2]
[341175891,1730536246064,-500.0,0.00031766,2]
[341175892,1730536246074,-500.0,0.00031766,2]
[341175893,1730536246084,-441.72886801,0.00031766,2]
[341175894,1730536246094,-500.0,0.00031766,2]
[341175895,1730536246104,-500.0,0.00031766,2]
[341175896,1730536246114,-500.0,0.00031766,2]
[341175897,1730536246124,-500.0,0.00031766,2]
[341175898,1730536246134,-500.0,0.00031766,2]
[341175899,1730536246144,-195.79872196,0.00031766,2]
[341175900,1730536246154,-500.0,0.00031766,2]
[341175901,1730536246164,-500.0,0.00031766,2]
[341175902,1730536246174,-500.0,0.00031766,2]
[341175903,1730536246183,-600.0,0.00031766,2]
[341175904,1730536246194,-500.0,0.00031766,2]
[341175905,1730536246203,-548.43217214,0.00031766,2]
[341175906,1730536246213,-500.0,0.00031766,2]
[341175907,1730536246223,-500.0,0.00031766,2]
[341175908,1730536246234,-500.0,0.00031766,2]
[341175909,1730536246244,-500.0,0.00031766,2]
[341175910,1730536246253,-500.0,0.00031766,2]
[341175911,1730536246266,-500.0,0.00031766,2]
[341175912,1730536246276,-500.0,0.00031766,2]
[341175913,1730536246286,-500.0,0.00031766,2]
[341175914,1730536246295,-500.0,0.00031766,2]
[341175915,1730536246305,-500.0,0.00031766,2]
[341175916,1730536246315,-500.0,0.00031766,2]
[341175917,1730536246325,-500.0,0.00031766,2]
[341175918,1730536246334,-500.0,0.00031766,2]
[341175919,1730536246343,-500.0,0.00031766,2]
[341175920,1730536246353,-500.0,0.00031766,2]
[341175921,1730536246363,-500.0,0.00031766,2]
[341175922,1730536246373,-500.0,0.00031766,2]
[341175923,1730536246383,-500.0,0.00031766,2]
[341175924,1730536246393,-500.0,0.00031766,2]
[341175925,1730536246402,-500.0,0.00031766,2]
[341175926,1730536246413,-500.0,0.00031766,2]
[341175927,1730536246424,-500.0,0.00031766,2]
[341175928,1730536246434,-500.0,0.00031766,2]
[341175929,1730536246444,-500.0,0.00031766,2]
[341175930,1730536246456,-500.0,0.00031766,2]
[341175931,1730536246466,-500.0,0.00031766,2]
[341175932,1730536246476,-500.0,0.00031766,2]
[341175933,1730536246487,-250.0,0.00031767,2]
[341175934,1730536246497,-250.0,0.00031853,2]
[341175935,1730536246507,-250.0,0.00031938,2]
[341175936,1730536246517,-150.0,0.00031964,2]
[341175937,1730536246530,-250.0,0.00032024,2]
[341175938,1730536246540,-500.0,0.00032025,3]
[341175939,1730536246550,-250.0,0.00032109,2]
[341175940,1730536246559,-250.0,0.00032194,2]
[341175941,1730536246569,-1142.0,0.00032244,2]
[341175942,1730536246579,-742.387079,0.00032271,2]
[341175943,1730536246589,-250.0,0.0003228,2]
[341175944,1730536246598,-500.0,0.00032299,3]
[341175945,1730536246608,-160.0,0.00032332,2]
[341175946,1730536246617,-250.0,0.00032365,2]
[341175947,1730536246627,-250.0,0.00032451,2]
[341175948,1730536246638,-250.0,0.00032536,2]
[341175949,1730536246647,-500.0,0.0003256,2]
[341175950,1730536246657,-157.74344498,0.0003256,2]
[341175951,1730536246666,-500.0,0.0003256,5]
[341175952,1730536246675,-500.0,0.00032573,3]
[341175953,1730536246684,-250.0,0.00032622,2]
[341175954,1730536246693,-69.04960292,0.00032707,2]
[341175955,1730536312793,300.0,0.00024658,2]
[341175956,1730536340579,295.551283,0.0002954,2]
[341175958,1730536444366,164.518994,0.00013973,2]
[341175964,1730536941155,164.623971,0.00013973,2]
[341175968,1730537134154,-191.2654809,0.00029637,2]
[341175969,1730537134176,-1547.97177,0.00029721,2]
[341175970,1730537134199,-162.634963,0.00029738,2]
[341175971,1730537134221,-162.634963,0.00029819,2]
[341175972,1730537134241,-59.01061232,0.00029827,2]
[341175973,1730537217540,1012.90102701,0.00033276,50]
[341175974,1730537242101,-166.666666,0.00029019,2]
[341175975,1730537242123,-204.5505947,0.00029719,2]
[341175976,1730537242144,-166.666666,0.0002981,2]
[341175977,1730537242165,-168.22302584,0.00029882,2]
[341175978,1730537242188,-162.634963,0.00029901,2]
[341175979,1730537242208,-483.9761621,0.00029911,2]
[341175980,1730537242228,-8.82565325,0.00029912,2]
[341175981,1730537248194,-331.71000014,0.00029912,2]
[341175982,1730537345131,-481.254096,0.00028843,2]
[341175983,1730537345152,-300.0,0.00029526,2]
[341175984,1730537345173,-300.0,0.00029526,2]
[341175985,1730537345194,-24900.0,0.00029527,2]
[341175986,1730537345215,-168.22302583,0.00029812,2]
[341175987,1730537363141,-1162.24422051,0.00029912,2]
[341175988,1730537363170,-591.8210663,0.00029927,2]
[341175989,1730537385965,190.129053,0.00029585,2]
[341175990,1730537406047,167.938752,0.00029585,2]
[341175991,1730537406188,167.938752,0.0002961,2]
[341175992,1730537406392,167.938752,0.00029635,2]
[341175993,1730537406611,167.938752,0.00029659,2]
[341175994,1730537407007,167.938752,0.00029684,2]
[341175995,1730537407216,167.938752,0.00029709,2]
[341175996,1730537407414,167.938752,0.00029733,2]
[341176031,1730537432170,-162.634963,0.00029982,2]
[341176033,1730537432179,-162.634963,0.00030064,2]
[341176035,1730537432189,-162.634963,0.00030145,2]
[341176037,1730537432198,-172.658182,0.00030196,2]
[341176039,1730537432207,-162.634963,0.00030227,2]
[341176041,1730537432218,-162.634963,0.00030308,2]
[341176043,1730537432227,-162.634963,0.0003039,2]
[341176045,1730537432237,-1547.97177,0.00030406,2]
[341176047,1730537432246,-162.634963,0.00030472,2]
[341176049,1730537432255,-286.833348,0.00030519,2]
[341176051,1730537432264,-286.833348,0.00030527,2]
[341176053,1730537432274,-286.833348,0.00030535,2]
[341176056,1730537432284,-286.833348,0.00030543,2]
[341176058,1730537432293,-286.833348,0.00030551,2]
[341176059,1730537432302,-162.634963,0.00030553,2]
[341176062,1730537432312,-286.833348,0.00030559,2]
[341176064,1730537432326,-286.833348,0.00030567,2]
[341176065,1730537432335,-286.833348,0.00030575,2]
[341176066,1730537432344,-286.833348,0.00030583,2]
[341176067,1730537432355,-286.833348,0.00030591,2]
[341176068,1730537432365,-400.0,0.00030599,2]
[341176069,1730537432377,-400.0,0.00030599,2]
[341176070,1730537432387,-55.8343345,0.00030599,2]
[341176071,1730537432404,-230.9990135,0.00030599,2]
[341176072,1730537432414,-166.666666,0.00030601,2]
[341176073,1730537432424,-286.833348,0.00030607,2]
[341176074,1730537432435,-286.833348,0.00030615,2]
[341176075,1730537432445,-286.833348,0.00030624,2]
[341176076,1730537432454,-286.833348,0.00030632,2]
[341176077,1730537432464,-162.634963,0.00030635,2]
[341176078,1730537432473,-286.833348,0.0003064,2]
[341176079,1730537432485,-286.833348,0.00030648,2]
[341176080,1730537432495,-500.0,0.00030655,2]
[341176081,1730537432504,-500.0,0.00030655,4]
[341176082,1730537432513,-500.0,0.00030655,4]
[341176083,1730537432523,-500.0,0.00030655,4]
[341176084,1730537432532,-286.833348,0.00030656,2]
[341176085,1730537432542,-286.833348,0.00030664,2]
[341176086,1730537432551,-286.833348,0.00030672,2]
[341176087,1730537432562,-162.634963,0.00030716,2]
[341176088,1730537432572,-162.634963,0.00030798,2]
[341176089,1730537432583,-162.634963,0.00030879,2]
[341176090,1730537432594,-233.65,0.00030928,4]
[341176091,1730537432608,-500.0,0.00030928,4]
[341176092,1730537432619,-500.0,0.00030928,3]
[341176093,1730537432629,-5000.0,0.00030928,2]
[341176094,1730537432641,-500.0,0.00030929,4]
[341176095,1730537432651,-162.634963,0.00030961,2]
[341176096,1730537432663,-162.634963,0.00031043,2]
[341176097,1730537432674,-1547.97177,0.00031091,2]
[341176098,1730537432684,-162.634963,0.00031124,2]
[341176099,1730537432694,-1855.60267079,0.00031169,2]
[341176100,1730537432704,-500.0,0.00031202,4]
[341176101,1730537432713,-500.0,0.00031202,3]
[341176102,1730537432722,-162.634963,0.00031206,2]
[341176103,1730537432731,-500.0,0.00031269,2]
[341176104,1730537432742,-500.0,0.00031269,2]
[341176105,1730537432751,-502.21209035,0.00031269,2]
[341176106,1730537432761,-540.25676533,0.00031269,2]
[341176107,1730537432771,-500.8102928,0.00031269,2]
[341176108,1730537432782,-160.46243283,0.00031269,2]
[341176109,1730537432792,-500.0,0.00031269,2]
[341176110,1730537432804,-500.0,0.00031269,2]
[341176111,1730537432814,-500.0,0.00031269,2]
[341176112,1730537432823,-500.0,0.00031269,2]
[341176113,1730537432833,-500.0,0.00031269,2]
[341176114,1730537432843,-500.0,0.00031269,2]
[341176115,1730537432856,-338.71468579,0.00031269,2]
[341176116,1730537432866,-500.0,0.00031269,2]
[341176117,1730537432877,-500.0,0.00031269,2]
[341176118,1730537432886,-500.0,0.00031269,2]
[341176119,1730537432895,-500.0,0.00031269,2]
[341176120,1730537432905,-500.0,0.00031269,2]
[341176121,1730537432914,-500.0,0.00031269,2]
[341176122,1730537432923,-500.0,0.00031269,2]
[341176123,1730537432934,-500.0,0.00031269,2]
[341176124,1730537432943,-327.48557767,0.00031269,2]
[341176125,1730537432952,-500.0,0.00031269,2]
[341176126,1730537432962,-500.0,0.00031269,2]
[341176127,1730537432971,-500.0,0.00031269,2]
[341176128,1730537432982,-107.50854781,0.00031269,2]
[341176131,1730537438056,-634.86650713,0.00031269,7]
[341176132,1730537438068,-176.00429272,0.0003127,4]
[341176133,1730537438080,-500.0,0.0003127,4]
[341176134,1730537438090,-502.97694563,0.0003127,4]
[341176135,1730537438100,-501.76982445,0.0003127,4]
[341176136,1730537438110,-503.38241826,0.0003127,4]
[341176137,1730537438120,-502.56945623,0.0003127,4]
[341176138,1730537438130,-500.0,0.0003127,4]
[341176139,1730537438140,-500.0,0.0003127,4]
[341176140,1730537438150,-500.0,0.0003127,4]
[341176141,1730537438160,-500.0,0.0003127,4]
[341176142,1730537438170,-510.1788632,0.0003127,4]
[341176143,1730537438179,-501.95864637,0.0003127,4]
[341176144,1730537438189,-513.26760163,0.0003127,4]
[341176145,1730537438198,-516.19797577,0.0003127,4]
[341176146,1730537438208,-500.0,0.0003127,4]
[341176147,1730537438218,-603.20524771,0.0003127,4]
[341176148,1730537438227,-500.0,0.0003127,4]
[341176149,1730537438237,-508.14554146,0.0003127,4]
[341176150,1730537438246,-583.25610899,0.0003127,4]
[341176151,1730537438256,-500.0,0.0003127,4]
[341176152,1730537438266,-500.0,0.0003127,4]
[341176153,1730537438275,-524.65032577,0.0003127,4]
[341176154,1730537438285,-502.76305877,0.0003127,4]
[341176155,1730537438295,-508.56867158,0.0003127,4]
[341176156,1730537438304,-500.0,0.0003127,4]
[341176158,1730537438314,-500.0,0.0003127,4]
[341176160,1730537438323,-513.89755044,0.0003127,4]
[341176162,1730537438333,-512.45066636,0.0003127,4]
[341176163,1730537438343,-500.0,0.0003127,4]
[341176164,1730537438354,-500.0,0.0003127,4]
[341176165,1730537438365,-517.36220124,0.0003127,4]
[341176166,1730537438374,-500.0,0.0003127,4]
[341176167,1730537438384,-504.08618867,0.0003127,4]
[341176168,1730537438393,-500.0,0.0003127,4]
[341176169,1730537438403,-475.0,0.0003127,4]
[341176170,1730537438412,-602.42506263,0.0003127,4]
[341176171,1730537438422,-504.16523949,0.0003127,4]
[341176172,1730537438432,-508.0897984,0.0003127,4]
[341176173,1730537438442,-162.634963,0.00031287,2]
[341176174,1730537438454,-166.666666,0.00031392,2]
[341176175,1730537438464,-160.18842209,0.00031453,5]
[341176176,1730537438475,-341.6351016,0.00031453,5]
[341176177,1730537438486,-500.0,0.00031453,2]
[341176178,1730537438496,-500.0,0.00031453,2]
[341176179,1730537438506,-501.71660942,0.00031453,5]
[341176180,1730537438515,-502.24024721,0.00031453,5]
[341176181,1730537438525,-150.44728927,0.00031453,2]
[341176182,1730537438534,-503.47932396,0.00031453,5]
[341176183,1730537438543,-503.85276079,0.00031453,5]
[341176184,1730537438553,-503.25960112,0.00031465,5]
[341176185,1730537438563,-500.0,0.00031465,5]
[341176186,1730537438573,-501.4356543,0.00031465,5]
[341176187,1730537438582,-501.5826517,0.00031465,5]
[341176188,1730537438592,-501.14034447,0.00031465,5]
[341176189,1730537438604,-508.20378584,0.00031465,5]
[341176190,1730537438613,-500.0,0.00031476,3]
[341176191,1730537438622,-500.0,0.00031544,4]
[341176192,1730537438632,-187.90994902,0.00031547,2]
[341176193,1730537438642,-500.0,0.00031631,2]
[341176194,1730537438652,-501.79712461,0.00031647,5]
[341176195,1730537438662,-501.51216373,0.00031647,5]
[341176196,1730537438674,-502.54176911,0.00031647,5]
[341176197,1730537438684,-611.21171138,0.0003175,3]
[341176198,1730537438693,-159.798,0.000318,14]
[341176199,1730537438703,-254.47,0.00031818,4]
[341176200,1730537438712,-500.0,0.00031872,5]
[341176201,1730537438721,-502.86322647,0.00031872,5]
[341176202,1730537438730,-618.28402816,0.00031923,4]
[341176203,1730537438739,-551.90998738,0.00031923,4]
[341176204,1730537438749,-231.51279032,0.00031992,2]
[341176205,1730537438759,-503.27335907,0.00031992,5]
[341176206,1730537438769,-488.25635082,0.00031992,5]
[341176207,1730537438779,-1855.60267076,0.00032059,2]
[341176208,1730537438788,-5000.0,0.00032105,2]
[341176209,1730537438798,-166.666666,0.00032183,2]
[341176210,1730537438807,-192.88367099,0.00032208,5]
[341176211,1730537438818,-448.98,0.00032228,3]
[341176212,1730537438827,-224.49,0.000323,3]
[341176213,1730537438838,-673.51,0.000323,3]
[341176214,1730537438848,-7638.5430631,0.0003231,2]
[341176215,1730537438857,-150.0,0.00032318,2]
[341176216,1730537438866,-150.0,0.00032318,2]
[341176217,1730537438875,-5000.0,0.00032381,2]
[341176218,1730537438885,-5000.0,0.00032381,2]
[341176219,1730537438894,-500.0,0.00032421,4]
[341176220,1730537438904,-500.0,0.00032421,4]
[341176221,1730537438914,-479.79454138,0.00032421,4]
[341176222,1730537438923,-5000.0,0.00032436,2]
[341176223,1730537438933,-153.0,0.00032438,2]
[341176224,1730537438942,-153.0,0.00032438,2]
[341176225,1730537438951,-153.0,0.00032438,2]
[341176226,1730537438961,-153.0,0.00032438,2]
[341176227,1730537438970,-7638.5430632,0.00032486,2]
[341176228,1730537438980,-152.84541232,0.00032694,2]
[341176229,1730537438990,-618.40355428,0.00032694,2]
[341176230,1730537438999,-181.49855861,0.00032694,2]
[341176231,1730537439009,-588.05294726,0.00032694,2]
[341176232,1730537439018,-500.0,0.00032695,4]
[341176233,1730537439028,-3019.0,0.000327,2]
[341176234,1730537439037,-500.0,0.00032731,5]
[341176235,1730537439047,-225.90625826,0.00032731,5]
[341176236,1730537439056,-286.1719449,0.00032822,2]
[341176237,1730537439068,-1000.0,0.00032835,5]
[341176238,1730537439077,-164.423443,0.00032877,120]
[341176239,1730537439086,-500.0,0.00032899,2]
[341176240,1730537439096,-500.0,0.00032899,2]
[341176241,1730537439106,-500.0,0.00032899,7]
[341176242,1730537439115,-500.0,0.00032969,4]
[341176243,1730537439126,-166.666666,0.00032974,2]
[341176244,1730537439136,-4939.12149236,0.00033199,120]
[341176245,1730537439191,-60.87850764,0.00033199,120]
[341176246,1730537439200,-502.66313262,0.00033242,5]
[341176247,1730537439210,-500.0,0.00033243,4]
[341176248,1730537439220,-1500.0,0.0003327,2]
[341176249,1730537439231,-5000.0,0.00033299,120]
[341176250,1730537439243,-3769.54589609,0.000333,2]
[341176251,1730537439254,-600.0,0.00033497,2]
[341176252,1730537439265,-153.0,0.00033531,2]
[341176253,1730537439275,-153.0,0.00033531,2]
[341176254,1730537439284,-153.0,0.00033531,2]
[341176255,1730537439293,-153.0,0.00033531,2]
[341176256,1730537439303,-153.0,0.00033531,2]
[341176257,1730537439313,-38.26620205,0.00033531,2]
[341176258,1730537439324,-114.73379795,0.00033531,2]
[341176259,1730537439334,-153.0,0.00033531,2]
[341176260,1730537439344,-153.0,0.00033531,2]
[341176261,1730537439353,-153.0,0.00033531,2]
[341176262,1730537439363,-153.0,0.00033531,2]
[341176263,1730537439373,-159.716,0.00033567,120]
[341176264,1730537439382,-897.96,0.00033598,3]
[341176265,1730537439392,-564.98346196,0.0003364,2]
[341176266,1730537439401,-380.0,0.00033659,2]
[341176267,1730537439411,-448.98,0.0003367,3]
[341176268,1730537439421,-600.0,0.00033846,2]
[341176269,1730537439431,-151.0,0.00033863,120]
[341176270,1730537439440,-237.07540742,0.00033902,2]
[341176271,1730537439450,-4949.11565793,0.00033972,120]
[341176272,1730537439463,-1360.31434207,0.00033972,120]
[341176273,1730537439474,-5000.0,0.00033998,120]
[341176274,1730537439485,-2192.25746161,0.00033999,2]
[341176275,1730537439495,-16513.42261261,0.00034,14]
[341176300,1730537440095,-500.0,0.00031268,2]
[341176301,1730537440105,-241.73234671,0.00031268,2]
[341176305,1730537443120,-258.26765329,0.00031268,2]
[341176306,1730537443132,-500.0,0.00031268,2]
[341176307,1730537443143,-282.74855777,0.00031268,2]
[341176308,1730537443155,-500.0,0.00031268,2]
[341176309,1730537443165,-500.0,0.00031268,2]
[341176310,1730537443176,-500.0,0.00031268,2]
[341176311,1730537443186,-500.0,0.00031268,2]
[341176312,1730537443195,-500.0,0.00031268,2]
[341176313,1730537443204,-500.0,0.00031268,2]
[341176314,1730537443213,-500.0,0.00031268,2]
[341176315,1730537443222,-500.0,0.00031268,2]
[341176316,1730537443231,-500.0,0.00031268,2]
[341176317,1730537443240,-500.0,0.00031268,2]
[341176318,1730537443249,-601.34109489,0.00031268,2]
[341176319,1730537443258,-500.0,0.00031268,2]
[341176320,1730537443267,-500.0,0.00031268,2]
[341176321,1730537443276,-500.0,0.00031268,2]
[341176322,1730537443285,-500.0,0.00031268,2]
[341176323,1730537443294,-500.0,0.00031268,2]
[341176324,1730537443303,-500.0,0.00031268,2]
[341176325,1730537443313,-500.0,0.00031268,2]
[341176326,1730537443323,-500.0,0.00031268,2]
[341176327,1730537443333,-500.0,0.00031268,2]
[341176328,1730537443342,-500.0,0.00031268,2]
[341176329,1730537443351,-500.0,0.00031268,2]
[341176330,1730537443360,-500.0,0.00031268,2]
[341176331,1730537443370,-500.0,0.00031268,2]
[341176332,1730537443379,-500.0,0.00031268,2]
[341176333,1730537443388,-500.0,0.00031268,2]
[341176334,1730537443397,-500.0,0.00031268,2]
[341176335,1730537443407,-500.0,0.00031268,2]
[341176336,1730537443416,-500.0,0.00031268,2]
[341176337,1730537443425,-497.61167009,0.00031268,2]
[341176338,1730537443434,-500.0,0.00031268,2]
[341176339,1730537443444,-500.0,0.00031268,2]
[341176340,1730537443454,-500.0,0.00031268,2]
[341176341,1730537443464,-500.0,0.00031268,2]
[341176342,1730537443473,-500.0,0.00031268,2]
[341176343,1730537443483,-500.0,0.00031268,2]
[341176344,1730537443492,-500.0,0.00031268,2]
[341176345,1730537443501,-500.0,0.00031268,2]
[341176346,1730537443511,-1855.60267076,0.00032949,2]
[341176347,1730537443520,-73193.5689626,0.00034,14]
[341176348,1730537443531,-4118.87080956,0.00034,14]
[341176349,1730537443543,-7564.17482799,0.00034,14]
[341176350,1730537443555,-8345.28081804,0.00034,14]
[341176351,1730537446108,-36.85666668,0.00032318,2]
[341176352,1730537446122,-113.14333332,0.00032318,2]
[341176353,1730537446132,-1855.60267076,0.00033839,2]
[341176355,1730537446141,-64939.8482085,0.00034,14]
[341176356,1730537446153,-620.09726334,0.00034,14]
[341176357,1730537535503,163.538735,0.00013973,2]
[341176359,1730537537351,1401.651896,0.00029346,2]
[341176360,1730537538151,172.658182,0.00029072,2]
[341176361,1730537539138,190.578,0.00023719,2]
[341176364,1730538045411,177.377302,0.00013973,2]
[341176365,1730538342100,-198.838788,0.00027091,2]
[341176366,1730538342121,-30.84966728,0.00027164,2]
[341176367,1730538350114,-332.97972272,0.00027164,2]
[341176368,1730538350139,-166.666666,0.00027345,2]
[341176369,1730538350164,-178.9012465,0.00027663,2]
[341176370,1730538350189,-166.666666,0.00028091,2]
[341176371,1730538350215,-300.0,0.00028832,2]
[341176372,1730538350238,-300.0,0.00028832,2]
[341176373,1730538350262,-3069.92377687,0.00028833,2]
[341176374,1730538396826,4673.17151829,0.00022,2]
[341176378,1730538549139,-200.0,0.00027542,2]
[341176379,1730538549162,-162.2310099,0.00027642,2]
[341176380,1730538549184,-2916.7903505,0.00027929,2]
[341176381,1730538549208,-300.0,0.00028832,2]
[341176382,1730538549228,-300.0,0.00028832,2]
[341176383,1730538549249,-21830.07622313,0.00028833,2]
[341176384,1730538549276,-166.666666,0.00028836,2]
[341176385,1730538549297,-1870.263253,0.00029009,2]
[341176386,1730538549319,-318.831391,0.0002909,61]